Cogmind - Beta 16 @@@ ROGUE MODE // 2025.11.22 @ 22:36:46 Player: Mozco Result: Destroyed by P-60 Hacker with Shock Rifle Performance ------------- Evolutions (3) 1500 Regions Visited (7) 1400 Robots Destroyed (0) 0 Value Destroyed (0) 0 Prototype IDs (25) 500 Alien Tech Used (0) 0 Bonus (1228) 1228 TOTAL SCORE: 4628 Bonus ------- Pacifist 928 Aligned with FarCom 300 Cogmind --------- Core Integrity 0/700 Matter 212/300 Energy 139/140 System Corruption 5% Temperature Cool (0) Movement Core (50) Location -7/Factory Parts ------- > --- POWER (1) -------- Light Deuterium Engine > --- PROPULSION (2) --- (None) > --- UTILITY (8) ------ Advanced Weight Redist. System Improved Terrain Scanner Terrain Scan Processor Improved Terrain Scan Processor Advanced Terrain Scan Processor System Shield System Shield > --- WEAPON (2) ------- (None) > --- INVENTORY (5) ---- Micro Nuclear Core Experimental Sensor Array Improved Field Recycling Unit (0) Latent Energy Streamer Powered Hammer Peak State ------------ > --- POWER ------------ Light Deuterium Engine > --- PROPULSION ------- (None) > --- UTILITY ---------- Advanced Weight Redist. System Experimental Sensor Array Improved Terrain Scanner Advanced ECM Suite System Shield System Shield System Restoration Module > --- WEAPON ----------- Datajack Axe > --- INVENTORY -------- Advanced Weight Redist. System Improved Field Recycling Unit Latent Energy Streamer [Rating: 37] Favorites ----------- Power Light Deuterium Engine Engine Light Deuterium Engine Power Core Light Nuclear Core Propulsion None Utility System Shield Device Advanced Weight Redist. System Storage Large Battery Processor Advanced Terrain Scan Processor Hackware System Shield Weapon Axe Energy Gun Heavy Particle Gun Energy Cannon Latent Energy Streamer Slashing Weapon Axe Special Melee Weapon Datajack Build | -11 -10 -9 -9 -9 -8 -8 -7 ------- Run | Yrd Mat Mat Min Exi Min Mat Fac Slots Evolved 6 | . . 2 . . . 2 2 Power . | . . . . . . . . Propulsion . | . . . . . . . . Utility 6 | . . 2 . . . 2 2 Weapon . | . . . . . . . . Parts Attached 24 | 2 . 1 2 1 . 7 11 Power 7 | 2 . 1 1 . . 1 2 Engine 6 | 2 . 1 1 . . . 2 Core 1 | . . . . . . 1 . Reactor . | . . . . . . . . Propulsion . | . . . . . . . . Treads . | . . . . . . . . Leg . | . . . . . . . . Wheel . | . . . . . . . . Hover . | . . . . . . . . Flight . | . . . . . . . . Utility 13 | . . . 1 . . 4 8 Device 6 | . . . 1 . . 2 3 Storage 1 | . . . . . . . 1 Processor 3 | . . . . . . . 3 Hackware 3 | . . . . . . 2 1 Protection . | . . . . . . . . Artifact . | . . . . . . . . Weapon 4 | . . . . 1 . 2 1 Energy Gun 1 | . . . . . . 1 . Energy Cannon 1 | . . . . 1 . . . Ballistic Gun . | . . . . . . . . Ballistic Cannon . | . . . . . . . . Launcher . | . . . . . . . . Special Weapon . | . . . . . . . . Impact Weapon . | . . . . . . . . Slashing Weapon 1 | . . . . . . 1 . Piercing Weapon . | . . . . . . . . Special Melee Weapon 1 | . . . . . . . 1 Unidentified Prototypes 2 | . . . 1 . . 1 . Parts Lost 12 | . . . 3 . . 2 7 Power 5 | . . . 3 . . 1 1 Propulsion . | . . . . . . . . Utility 4 | . . . . . . . 4 Weapon 3 | . . . . . . 1 2 Highest Loss Streak 6 | . . . 2 . . 2 6 To Critical Strikes 1 | . . . 1 . . . . Average Backups 2 | . . . 1 1 2 2 4 Power . | . . . . . . . . Propulsion . | . . . . . . . . Utility 1 | . . . . 1 1 1 3 Weapon . | . . . . . 1 1 1 Tool/Special . | . . . . . . . . Unused Backups 3 | . . . . . . . 3 Power 1 | . . . . . . . 1 Propulsion . | . . . . . . . . Utility 1 | . . . . . . . 1 Weapon 1 | . . . . . . . 1 Tool/Special . | . . . . . . . . Average Slot Usage (%) 24 | . 14 11 7 6 . 27 41 Engine 3 | . 14 11 7 . . . 4 Device 6 | . . . . . . 8 12 Processor 1 | . . . . . . . 3 Hackware 6 | . . . . . . 3 13 Energy Cannon 1 | . . . . 6 . . . Slashing Weapon 1 | . . . . . . 3 2 Special Melee Weapon 1 | . . . . . . . 2 Peak Build Rating 37 | 1 1 1 10 10 1 18 37 Average Rating 11 | . 1 1 . 6 1 11 19 On Entrance 2 | . 1 1 1 . 1 1 14 Avg Prop Armor Cover (%) . | . . . . . . . . Naked Turns 188 | . . . 39 84 53 12 . Heaviest Build 13 | 5 3 3 4 10 . 11 13 Greatest Support 12 | 3 3 3 3 3 3 12 12 Greatest Overweight (x) 4 | 1 . . 1 3 . . 4 Average Overweight (x) . | . . . . 1 . . . Largest Inventory Capacity 5 | 5 5 5 5 5 5 5 5 Average Capacity 5 | 5 5 5 5 5 5 5 5 Most Carried 5 | . . 1 2 2 2 5 5 Average Carried 2 | . . . 1 1 2 3 4 Final Capacity 5 | 5 5 5 5 5 5 5 5 Final Carried 5 | . . 1 1 2 2 5 5 Class Distribution -------------------- 57% | Mutant 42% | Hacker-Mutant Dominant Class ---------------- Mutant | -10/Materials Mutant | -9/Materials Mutant | -9/Mines Mutant | -9/Exiles Mutant | -8/Mines Mutant | -8/Materials Hacker-Mutant | -7/Factory Resources | -11 -10 -9 -9 -9 -8 -8 -7 ----------- Run | Yrd Mat Mat Min Exi Min Mat Fac Matter Collected 401 | 191 . . . . . . 210 Remotely . | . . . . . . . . Salvage Created . | . . . . . . . . Parts . | . . . . . . . . Haulers Intercepted . | . . . . . . . . Recyclers Shooed . | . . . . . . . . Parts Field Recycled . | . . . . . . . . Retrieved Matter . | . . . . . . . . Parts Self-Destructed . | . . . . . . . . Prevented . | . . . . . . . . Parts Restored . | . . . . . . . . Kills | -11 -10 -9 -9 -9 -8 -8 -7 ------- Run | Yrd Mat Mat Min Exi Min Mat Fac Combat Hostiles Destroyed . | . . . . . . . . Classes Destroyed . | . . . . . . . . Best Kill Streak . | . . . . . . . . Combat Bots Only . | . . . . . . . . Max Kills in Single Turn . | . . . . . . . . Gunslinging . | . . . . . . . . Exploded . | . . . . . . . . Melee . | . . . . . . . . Uniques/NPCs Destroyed . | . . . . . . . . Combat | -11 -10 -9 -9 -9 -8 -8 -7 -------- Run | Yrd Mat Mat Min Exi Min Mat Fac Hostile Shots Fired 202 | . 12 10 49 . 4 30 97 Missed 82 | . 5 5 20 . 3 8 41 Hits 120 | . 7 5 29 . 1 22 56 Melee 1 | . . . 1 . . . . Projectile 119 | . 7 5 28 . 1 22 56 Critical Strikes 7 | . . . 2 . . 1 4 Damage Taken 1752 | . 79 66 263 32 10 377 925 Core 1184 | . 67 32 159 32 10 171 713 Absorbed by Shields . | . . . . . . . . Core Remaining (%) 70 | 100 73 . . . 41 68 . Volleys Fired 1 | . . . . . . 1 . Largest 1 | . . . . . . 1 . Hottest 55 | . . . . . . 55 . Shots Fired 1 | . . . . . . 1 . Gun 1 | . . . . . . 1 . Cannon . | . . . . . . . . Launcher . | . . . . . . . . Special . | . . . . . . . . Kinetic . | . . . . . . . . Thermal 1 | . . . . . . 1 . Explosive . | . . . . . . . . Electromagnetic . | . . . . . . . . Robot Hit Streak . | . . . . . . . . Robot Miss Streak . | . . . . . . . . Penetration Max . | . . . . . . . . Secondary Targets . | . . . . . . . . Shots Hit Robots 1 | . . . . . . . 1 Core Hits . | . . . . . . . . Critical Kills . | . . . . . . . . Critical Parts Destroyed . | . . . . . . . . Critical Strikes . | . . . . . . . . Melee Attacks 5 | . . . . . . 3 2 Impact . | . . . . . . . . Slashing 4 | . . . . . . 3 1 Piercing . | . . . . . . . . Sneak Attacks 1 | . . . . . . . 1 Combat Hostiles . | . . . . . . . . Follow-up Attacks . | . . . . . . . . Damage Inflicted 89 | . . 25 11 24 . 4 25 Guns . | . . . . . . . . Cannons . | . . . . . . . . Explosions . | . . . . . . . . Melee . | . . . . . . . . Ramming 89 | . . 25 11 24 . 4 25 Kinetic . | . . . . . . . . Thermal . | . . . . . . . . Explosive . | . . . . . . . . Electromagnetic . | . . . . . . . . Impact . | . . . . . . . . Slashing . | . . . . . . . . Piercing . | . . . . . . . . Highest Corruption 8 | . . . 5 8 8 . 5 Average Corruption 5 | . . . 5 5 8 . 4 Corruption Purged 1 | . . . . . . . 1 Corruption Blocked . | . . . . . . . . Effects 13 | . . . 1 5 2 . 5 Message Errors 1 | . . . . . . . 1 Matter Fused 6 | . . . 1 3 1 . 1 Heat Flow Errors 2 | . . . . 1 . . 1 Energy Discharges 2 | . . . . . . . 2 Data Loss (major) 2 | . . . . 1 1 . . Overload Shots . | . . . . . . . . Overflow Damage . | . . . . . . . . Projectiles . | . . . . . . . . Explosions . | . . . . . . . . Melee . | . . . . . . . . Knockbacks . | . . . . . . . . Impact . | . . . . . . . . Kinetic . | . . . . . . . . Secondary . | . . . . . . . . Self-Inflicted Damage 55 | . . 12 5 24 . 2 12 Shots . | . . . . . . . . Rammed 10 | . . 3 2 . . 1 4 Targets Rammed 10 | . . 3 2 . . 1 4 Kicked . | . . . . . . . . Crushed . | . . . . . . . . Highest Temperature 216 | . . . . 213 . 8 216 Average Temperature 101 | . . . . 115 . 5 114 Received Heat Transfer 507 | . 42 30 18 . . 198 219 Siege Activations . | . . . . . . . . Martial Activations . | . . . . . . . . Shielding Activations . | . . . . . . . . Robots Disrupted . | . . . . . . . . Combat Hostiles . | . . . . . . . . Robots Corrupted . | . . . . . . . . Combat Hostiles . | . . . . . . . . Parts Fried . | . . . . . . . . Impact Corruptions . | . . . . . . . . Robots Melted . | . . . . . . . . Combat Hostiles . | . . . . . . . . Parts Melted . | . . . . . . . . Heat Transferred . | . . . . . . . . Parts Sabotaged . | . . . . . . . . Parts Stolen . | . . . . . . . . Parts Stripped . | . . . . . . . . Power Chain Reactions . | . . . . . . . . Alert | -11 -10 -9 -9 -9 -8 -8 -7 ------- Run | Yrd Mat Mat Min Exi Min Mat Fac Maximum Alert Level . | . . . . . . . . Low Security (%) 100 | 100 100 100 100 . 100 100 100 Level 1 . | . . . . . . . . Level 2 . | . . . . . . . . Level 3 . | . . . . . . . . Level 4 . | . . . . . . . . Level 5 . | . . . . . . . . High Security . | . . . . . . . . Max Security . | . . . . . . . . Peak Influence 154 | . . . 30 . . 30 154 Initial . | . . . . . . . . Average 32 | . . . 2 . . 8 54 Influence Increases 359 | . . . 45 . . 55 259 Successful Hack 42 | . . . . . . 8 34 Destroy Structure 2 | . . . . . . 2 . Partial Spotted 30 | . . . . . . 30 . Lose Combat Pursuer 285 | . . . 45 . . 15 225 Influence Decreases 241 | . . . 15 30 . 55 141 Entered New Map 30 | . . . . 30 . . . Time Decay 184 | . . . 5 . . 48 131 Lost Part 27 | . . . 10 . . 7 10 Squads Dispatched 9 | . 2 1 . . . 2 4 Investigation 4 | . 1 . . . . 2 1 Extermination 2 | . . . . . . . 2 Reinforcement 3 | . 1 1 . . . . 1 Assault . | . . . . . . . . Garrison . | . . . . . . . . Intercept . | . . . . . . . . Searches Triggered . | . . . . . . . . Construction Impeded . | . . . . . . . . Haulers Reinforced . | . . . . . . . . Active Scanning Responses . | . . . . . . . . Cargo Convoy Interrupts . | . . . . . . . . Stealth | -11 -10 -9 -9 -9 -8 -8 -7 --------- Run | Yrd Mat Mat Min Exi Min Mat Fac Distress Signals 1 | . . . . . . . 1 Communications Jammed . | . . . . . . . . Distress Signals . | . . . . . . . . Times Spotted 44 | . 3 5 7 . 1 6 22 Peak Tracking Total 13 | . 3 4 5 9 1 5 13 Tactical Retreats 10 | . . . 2 . . 1 7 ECM-based Alert Blocks 1 | . . . . . . . 1 Traps | -11 -10 -9 -9 -9 -8 -8 -7 ------- Run | Yrd Mat Mat Min Exi Min Mat Fac Traps Triggered 4 | . 1 . . . . 1 2 Indirectly . | . . . . . . . . Trap Hack Attempts . | . . . . . . . . Triggered . | . . . . . . . . Disarmed . | . . . . . . . . Reprogrammed . | . . . . . . . . Reused . | . . . . . . . . Traps Extracted . | . . . . . . . . Installed . | . . . . . . . . Triggered . | . . . . . . . . Machines | -11 -10 -9 -9 -9 -8 -8 -7 ---------- Run | Yrd Mat Mat Min Exi Min Mat Fac Machines Disabled 1 | . . . . 1 . . . Max in Single Turn 1 | . . . . 1 . . . Machines Repaired . | . . . . . . . . Machines Dismantled . | . . . . . . . . Machines Sabotaged . | . . . . . . . . Overloaded Fab Kills . | . . . . . . . . Hacking | -11 -10 -9 -9 -9 -8 -8 -7 --------- Run | Yrd Mat Mat Min Exi Min Mat Fac Machines Accessed 10 | . . . . 1 . 2 7 Terminals 8 | . . . . . . 2 6 Fabricators . | . . . . . . . . Repair Stations . | . . . . . . . . Recycling Units . | . . . . . . . . Scanalyzers 1 | . . . . . . . 1 Garrison Access . | . . . . . . . . Total Hacks 29 | . . . . 1 . 5 23 Successful 9 | . . . . 1 . 1 7 Failed 20 | . . . . . . 4 16 Catastrophic 10 | . . . . . . 2 8 Database Lockouts . | . . . . . . . . Manual 20 | . . . . 1 . 5 14 Terminals 25 | . . . . . . 5 20 Fabricators . | . . . . . . . . Repair Stations . | . . . . . . . . Recycling Units . | . . . . . . . . Scanalyzers 3 | . . . . . . . 3 Garrison Access . | . . . . . . . . Terminal Hacks 4 | . . . . 1 . 1 2 Part Schematic 1 | . . . . . . 1 . Branch Access Points 1 | . . . . . . . 1 Scanalyzer Index 1 | . . . . . . . 1 Proto ID Catalog 1 | . . . . 1 . . . Fabricator Hacks . | . . . . . . . . Repair Station Hacks . | . . . . . . . . Recycling Unit Hacks . | . . . . . . . . Scanalyzer 2 | . . . . . . . 2 Insert Component 1 | . . . . . . . 1 Analyze 1 | . . . . . . . 1 Garrison Access Hacks . | . . . . . . . . Unauthorized Hacks 3 | . . . . . . . 3 Terminals 3 | . . . . . . . 3 Botnet 3 | . . . . . . . 3 Fabricators . | . . . . . . . . Repair Stations . | . . . . . . . . Recycling Units . | . . . . . . . . Scanalyzers . | . . . . . . . . Garrison Access . | . . . . . . . . Data Cores Recovered . | . . . . . . . . Used . | . . . . . . . . Hacking Detections 9 | . . . . . . 2 7 Full Trace Events 2 | . . . . . . 2 . Feedback Events . | . . . . . . . . Feedback Blocked . | . . . . . . . . Robot Schematics Acquired . | . . . . . . . . Robots Built . | . . . . . . . . Authchips . | . . . . . . . . Time . | . . . . . . . . Total Robot Build Rating . | . . . . . . . . Part Schematics Acquired 2 | . . . . . . 1 1 Parts Built . | . . . . . . . . Authchips . | . . . . . . . . Time . | . . . . . . . . Total Part Build Rating . | . . . . . . . . Part Studies Acquired . | . . . . . . . . Parts Repaired . | . . . . . . . . Time . | . . . . . . . . Parts Recycled . | . . . . . . . . Recycled Matter . | . . . . . . . . Retrieved Matter . | . . . . . . . . Retrieved Components . | . . . . . . . . Parts Scanalyzed 1 | . . . . . . . 1 Part Schematics Acquired 1 | . . . . . . . 1 Parts Damaged . | . . . . . . . . Bothacking | -11 -10 -9 -9 -9 -8 -8 -7 ------------ Run | Yrd Mat Mat Min Exi Min Mat Fac Used RIF Installer . | . . . . . . . . Robots Hacked 1 | . . . . . . . 1 Non-combat 1 | . . . . . . . 1 Combat . | . . . . . . . . Robot Hacks Applied 1 | . . . . . . . 1 parse_system 1 | . . . . . . . 1 Relay Couplers Released . | . . . . . . . . Fabnet Peak Effective % . | . . . . . . . . Robots Rewired . | . . . . . . . . Allies Hacked . | . . . . . . . . Hacks Repelled . | . . . . . . . . Allies | -11 -10 -9 -9 -9 -8 -8 -7 -------- Run | Yrd Mat Mat Min Exi Min Mat Fac Total Allies . | . . . . . . . . Largest Group . | . . . . . . . . Highest-Rated Group . | . . . . . . . . Highest-Rated Ally . | . . . . . . . . Total Orders . | . . . . . . . . Ally Attacks . | . . . . . . . . Total Damage . | . . . . . . . . Kills . | . . . . . . . . Allies Corrupted . | . . . . . . . . Allies Melted . | . . . . . . . . Intel | -11 -10 -9 -9 -9 -8 -8 -7 ------- Run | Yrd Mat Mat Min Exi Min Mat Fac Active Infowar (turns) 179 | . . . 3 . . 3 173 Sensors 38 | . . . 3 . . . 35 Terrain 172 | . . . . . . 3 169 ECM 5 | . . . . . . . 5 Robot Analysis Total . | . . . . . . . . Derelict Logs Recovered . | . . . . . . . . Drone Launches . | . . . . . . . . Drone Recoveries . | . . . . . . . . Exploration | -11 -10 -9 -9 -9 -8 -8 -7 ------------- Run | Yrd Mat Mat Min Exi Min Mat Fac Turns Passed 1218 | 21 49 33 93 257 53 174 538 Spaces Moved 1951 | 27 98 57 170 248 105 284 962 Core 1951 | 27 98 57 170 248 105 284 962 Treads . | . . . . . . . . Legs . | . . . . . . . . Wheels . | . . . . . . . . Hover . | . . . . . . . . Flight . | . . . . . . . . Fastest Speed 50 | 50 50 50 50 50 50 50 50 Average Speed 57 | 62 50 50 50 102 50 50 51 Slowest Speed 250 | 100 50 50 100 200 50 50 250 Overloaded Moves . | . . . . . . . . Propulsion Burnouts . | . . . . . . . . Robots Hopped . | . . . . . . . . Potential Cave-ins . | . . . . . . . . Cave-ins Triggered . | . . . . . . . . Exploration Rate (%) 31 | 3 27 11 53 61 35 25 34 Regions Visited 7 Branch Regions 3 Pre-discovered Areas . | . . . . . . . . Known Exits Taken . | . . . . . . . . Unknown Exits Taken 7 | 1 1 1 1 1 1 1 . Scrap Searched . | . . . . . . . . Spaces Dug 2 | . . . . . . 2 . Terrain Destroyed 2 | . . . . . . 2 . Melee 2 | . . . . . . 2 . Projectile . | . . . . . . . . AOE . | . . . . . . . . Terrain Rammed 2 | . . . . 2 . . . Walls Destroyed . | . . . . . . . . Machines Disabled 1 | . . . . 1 . . . Actions | -11 -10 -9 -9 -9 -8 -8 -7 --------- Run | Yrd Mat Mat Min Exi Min Mat Fac Total 2023 | 29 97 60 175 251 104 304 1003 Wait 12 | . . . . . . 1 11 Move 1944 | 26 97 56 169 247 104 283 962 Hop . | . . . . . . . . Pick Up 6 | . . . . . . 2 4 Fast Attach 26 | 2 . . 2 1 . 11 10 Attach 6 | . . . 1 . . . 5 Detach 5 | . . . 1 1 . 1 2 Swap 1 | . . 1 . . . . . Drop 5 | 1 . . . . . 1 3 Fire 1 | . . . . . . 1 . Melee 5 | . . . . . . 3 2 Ram 12 | . . 3 2 2 . 1 4 Kick . | . . . . . . . . Crush . | . . . . . . . . Escape Stasis . | . . . . . . . . Rewire . | . . . . . . . . Trap . | . . . . . . . . Miscellaneous . | . . . . . . . . Route ------- -11/Scrapyard -10/Materials -9/Materials -9/Mines -9/Exiles -8/Mines -8/Materials -7/Factory (discovered 2 exits: Low x2) History --------- Turn | Location | Event 6 | -11/Scrapyard | Discovered new exit (range 15) 22 | -11/Scrapyard | Entered Materials 64 | -10/Materials | Discovered new exit (range 16) 71 | -10/Materials | Entered another Materials area 71 | -9/Materials | Evolved 2 slots: Utility x2 90 | -9/Materials | Discovered new exit (range 14) 104 | -9/Materials | Entered Mines 174 | -9/Mines | Found a damaged Exp. Sensor Array with a note attached 175 | -9/Mines | Found Prototype Device 175 | -9/Mines | Identified Exp. Sensor Array 194 | -9/Mines | Deemed a non-threat by the Exiles lab entrance 194 | -9/Mines | Discovered new exit (range 5) 197 | -9/Mines | Entered Exiles 211 | -9/Exiles | Met 8R-AWN 219 | -9/Exiles | Met EX-HEX 232 | -9/Exiles | Met EX-BIN 238 | -9/Exiles | Aligned with FarCom system 238 | -9/Exiles | Given EX-Vault access code 251 | -9/Exiles | Opened EX-Vault 254 | -9/Exiles | Found Latent Energy Streamer 291 | -9/Exiles | Warned to stay clear of 0b10 Research branches 313 | -9/Exiles | Build established: Mutant 353 | -9/Exiles | Met EX-DEC 437 | -9/Exiles | Attacked by the Exiles 437 | -9/Exiles | Core integrity fell below 50% 450 | -9/Exiles | Discovered new exit (range 10) 454 | -9/Exiles | Left Exiles lab with Latent Energy Streamer 454 | -9/Exiles | Entered Mines 499 | -8/Mines | Discovered new exit (range 16) 507 | -8/Mines | Entered Materials 507 | -8/Materials | Evolved 2 slots: Utility x2 678 | -8/Materials | Discovered new exit (range 4) 681 | -8/Materials | Entered Factory 681 | -7/Factory | Evolved 2 slots: Utility x2 919 | -7/Factory | Core integrity fell below 50% 949 | -7/Factory | Lost 6 parts (1p3u2w) 974 | -7/Factory | Core integrity fell below 20% 1145 | -7/Factory | Identified exit to Lower Caves 1219 | -7/Factory | Destroyed by P-60 Hacker with Shock Rifle Last Messages --------------- Scanning: Mic. Nuclear Core... Schematic downloaded. 01145_ Connecting with Terminal... >>Trojan(Botnet) Trojan loaded successfully. Testing... Terminal linked with 2 systems. Awaiting botnet instructions. >>Access(Branch) Found 2 branch access points: (134,132) Lower Caves (119,180) Lower Caves Map updated. 01150_ System corrupted: Energy discharge (-46). 01178_ ALERT: Cargo convoy en route, clear transfer corridor. 01187_ Acquired Terrain Scan Processor. 01191_ Triggered Alarm Trap. 01191_ An alarm sounds. 01191_ ALERT: Alarm triggered, dispatching investigation squad. 01193_ Connecting with Terminal... Map ----- +----------------------------------------------------+ | #?#??????#?###??# ## # #???? | | #?????????###??## ## # #???? | | #?????????????### # ] #???? | | #?????????#?##??# # #?#?? | | #??????????#????# # #???? | | ##?????????#?#?## + #???? | | #????????????### # " " ??? | | #??????"????#?## # !! "T" ???? | | +???????????############+#### ! """ ???? | | #?????????????#??#?# ?? ???? | | #???????? ?#????##?# ?? ???? | | #???????? ??#?????## ### ?????? | | #??????????###?#??## ##?#####?????? | | #?????#?###??????### #?##??#??????? | | #??????????????##??# ####+###????????????? | | #?????? ??? ? ?????# #????? ? ? ?????????? | | +???? ???#??""????# # ??""""??"?????????? | | ####????? ??# ?????? # #??? ? ?????????????? | | ??????????? ???"??? # #????"??????????????? | | ????????"???? ?? ? ?# #? ? ?????????????? | | ###???????? # ?????? # #??#??#?##??????????? | | ! #?????????#?"????? # #?# ????????????????? | | #?????????#????????# ###?????????????????? | | #?????????????? ?# #??????"??????????? | | #????????+?????#+### #?????????????????? | | #??????? u k @ #? ???????????????? | | #??????? #?????????????????? | | #???????"" """ """ """ """ + ????????????????? | | +???????????"" """ """ """ # ??? ?? ?????????? | | #???????"????? """ """ """ #?????????????????? | | ###?????????? ?? #??? ?????????????? | | ?????????????"???""" """ """ #?????????????????? | | ???????????????? """ """ """ #?????????????????? | | ??????????????"???"??""" "?"?? ##????????????????? | | ??????????????? ?????? ???????????????????????? | | ??????????????????????? ??????? ??????????????? | | ???????????????? ?????? ????????????????????????? | | ??????????????????????? ???????????????????????? | | ???????????????????????? ????????????????????????? | | ???????????????????????? ????????????????????????? | | ?????????????????????????????????????????????????? | | ?????????????????????????????????????????????????? | | ?????????????????????????????????????????????????? | | ?????????????????????????????????????????????????? | | ?????????????????????????????????????????????????? | | ?????????????????????????????????????????????????? | | ?????????????????????????????????????????????????? | | ?????????????????????????????????????????????????? | | ???? #?????????????????????????????????????????? | | ???? #?????????????????????????????????????????# | +----------------------------------------------------+ Best States ------------- Heat Dissipation 34 Energy Generation 14 Energy Capacity 340 Matter Stores 283 Matter Capacity 300 Sight Range 16 Robot Scan Range 20 Terrain Scan Range 16 Terrain Scan Density 385 ECM Strength 2 Additional Mass Support 9 Evasion (%) 50 Defensive Hacking 20 Item Schematics ----------------- Hacking Suite | -8/Materials | Hacked Mic. Nuclear Core | -7/Factory | Scanalyzed Robot Schematics ------------------ None Fabricated ------------ Nothing Repaired ---------- Nothing Studied --------- None Alien Tech Used ----------------- None Achievements -------------- None Challenges ------------ None Game ------ Seed PhasingVoltaicScrap Manual? 0 Play Time 00:16:48 Cumulative 318.6 hours Start 2025.11.22 @ 22:21:43 End 2025.11.22 @ 22:36:46 Sessions 1 Manual Loads 0 Difficulty Rogue Special Mode None Game No. 330 Rogue 326 Adventurer 3 Explorer 1 Win Type - Total 2 Types 2/0/0/0/0/0/0/0/0/0 Lore% 82 Gallery% 77 Achievement% 63 Wizard Run 0 Options --------- Layout 0 ASCII 0 Keyboard 0 Movement Numpad Keybinds 0 Fullscreen 2 Font 18/SmallcapsGlow Map View 76x50 Zoom Use 0% Tactical HUD 1 Map Filters NONE Filters NONE Steam 1 RUN: 507566b2-56e0-4aca-8f3b-4a1a3f02105d